{"text_format":"1","workbook":"xlsx","n_sheets":1,"sheets":["Лист1"],"not_rendered":{"charts":0,"images":1,"macros":1,"external_links":0,"defined_names":0,"comments":0,"pivot_tables":0},"unopened":[],"bounds":{"document_bytes":16777216,"sheet_cells":100000,"rows_first":2000,"rows_last":500,"rows_between":2000,"halvings":0,"cell_chars":16384,"cell_head_chars":4096},"cells_cut":0,"cells_raw":0,"read":"whole","date_system":"1900"}

{"sheet":"Лист1","index":0,"n_rows":106,"n_cols":46,"rows_kept":106,"cut":false,"hidden":false,"merged":[]}
[null,null,null,null,null,null,null,null,null,null,null,null,null,"ttx456s\\..*?,"]
[null,null,null,null,null,null,null,null,null,null,null,null,null,"В эту ячейку будет вписано ключевое слово \"ttx456s\"",null,null,null,null,null,null,null,null,null,null,null,null,null,null,null,null,null,null,null,null,"В столбец нужно вписать то что стоит между ключевым словом с точкой \"ttx456s.\" и ближайшей запятой справа."]
[null,null,null,null,null,null,null,null,null,null,null,null,null,"ttx456s",null,null,null,null,null,null,null,null,null,null,null,null,null,null,null,null,null,null,null," ",null,null,null,null,null,null,null,null,null,null,"Должен получится вот такой результат:"]
[1,1,1,433,null," ",null,null,null,null,{"$f":"IF(ISERROR(SEARCH($N$3,$D4&$E4))=TRUE,\"\",IF(ISERROR($A4&$B4&$C4&MID($D4,SEARCH($N$3&\"(\",$D4&$E4,1)+3,SEARCH(\")\",RIGHT($D4&$E4,LEN($D4&$E4)-FIND($N$3,$D4&$E4)-1),1)-1)),\"\",$A4&$B4&$C4&MID($D4&$E4,SEARCH($N$3&\"(\",$D4&$E4,1)+LEN($N$3),SEARCH(\")\",RIGHT($D4&$E4,LEN($D4&$E4)-FIND($N$3,$D4&$E4)-1),1)-LEN($N$3)+3)))","v":""},null,{"$f":"IF(P4>\"\",1,0)","v":0},null,null,null,null,null,null,null,null,null,null,null,null,null,null,null,null,null,null,null,null,1,{"$f":"IFERROR(INDEX(K:K,SMALL(IF((K$4:K$6993<>0)*(K$4:K$6993<>\" \")*(K$4:K$6993<>\"\"),ROW(K$4:K$6993)),ROW(A1))),\"\")","v":"141(343097845 34dfg fd4,),"},null,null,null,null,null,null,null,null,"ttx456s.один два три6",null,"ttx456s.один два три6"]
[1,4,1,5434,null," ",null,null,null,null,{"$f":"IF(ISERROR(SEARCH($N$3,$D5&$E5))=TRUE,\"\",IF(ISERROR($A5&$B5&$C5&MID($D5,SEARCH($N$3&\"(\",$D5&$E5,1)+3,SEARCH(\")\",RIGHT($D5&$E5,LEN($D5&$E5)-FIND($N$3,$D5&$E5)-1),1)-1)),\"\",$A5&$B5&$C5&MID($D5&$E5,SEARCH($N$3&\"(\",$D5&$E5,1)+LEN($N$3),SEARCH(\")\",RIGHT($D5&$E5,LEN($D5&$E5)-FIND($N$3,$D5&$E5)-1),1)-LEN($N$3)+3)))","v":""},null,{"$f":"IF(P5>\"\",1,0)","v":0},null,null,null,null,null,null,null,null,null,null,null,null,null,null,null,null,null,null,null,null,2,{"$f":"IFERROR(INDEX(K:K,SMALL(IF((K$4:K$6993<>0)*(K$4:K$6993<>\" \")*(K$4:K$6993<>\"\"),ROW(K$4:K$6993)),ROW(A2))),\"\")","v":"311(343097845 34dfg fd2,),"},null,null,null,null,null,null,null,null,"ttx456s.один три9",null,"ttx456s.один три9"]
[1,1,1,"5 ttx456s ",null," ",null,null,null,null,"",null,0,null,null,null,null,null,null,null,null,null,null,null,null,null,null,null,null,null,null,null,null,3,{"$f":"IFERROR(INDEX(K:K,SMALL(IF((K$4:K$6993<>0)*(K$4:K$6993<>\" \")*(K$4:K$6993<>\"\"),ROW(K$4:K$6993)),ROW(A3))),\"\")","v":"111(343097845 34dfg fd3,),"},null,null,null,null,null,null,null,null,"ttx456s.восемь-4",null,"ttx456s.восемь-4"]
[1,1,1,34,null," ",null,null,null,null,"",null,0,null,null,null,null,null,null,null,null,null,null,null,null,null,null,null,null,null,null,null,null,4,{"$f":"IFERROR(INDEX(K:K,SMALL(IF((K$4:K$6993<>0)*(K$4:K$6993<>\" \")*(K$4:K$6993<>\"\"),ROW(K$4:K$6993)),ROW(A4))),\"\")","v":"111(34309784"},null,null,null,null,null,null,null,null,"ttx456s.один-12",null,"ttx456s.один-12"]
[1,4,1,5,null," ",null,null,null,null,"",null,0,null,null,null,null,null,null,null,null,null,null,null,null,null,null,null,null,null,null,null,null,5,{"$f":"IFERROR(INDEX(K:K,SMALL(IF((K$4:K$6993<>0)*(K$4:K$6993<>\" \")*(K$4:K$6993<>\"\"),ROW(K$4:K$6993)),ROW(A5))),\"\")","v":"311(343097845 34dfg fd4,),ttx456s.один-12,hfg 73"}]
[1,1,1,45,null," ",null,null,null,null,"",null,0,null,null,null,null,null,null,null,null,null,null,null,null,null,null,null,null,null,null,null,null,6,{"$f":"IFERROR(INDEX(K:K,SMALL(IF((K$4:K$6993<>0)*(K$4:K$6993<>\" \")*(K$4:K$6993<>\"\"),ROW(K$4:K$6993)),ROW(A6))),\"\")","v":"151(343097845 34dfg fd445345-ТЕКСТ 456,),"}]
[1,4,1,"43,ttx456s(343097845 34dfg fd4,), 09dg(23487v y7 673t2,),ttx456s.один два три6,",null," ",null,null,null,null,"141(343097845 34dfg fd4,),",null,0,null,null,null,null,null,null,null,null,null,null,null,null,null,null,null,null,null,null,null,null,7,{"$f":"IFERROR(INDEX(K:K,SMALL(IF((K$4:K$6993<>0)*(K$4:K$6993<>\" \")*(K$4:K$6993<>\"\"),ROW(K$4:K$6993)),ROW(A7))),\"\")","v":"1(343097845 34dfg fd445345,),"}]
[1,1,1,5,null," ",null,null,null,null,"",null,0,null,null,null,null,null,null,null,null,null,null,null,null,null,null,null,null,null,null,null,null,8,{"$f":"IFERROR(INDEX(K:K,SMALL(IF((K$4:K$6993<>0)*(K$4:K$6993<>\" \")*(K$4:K$6993<>\"\"),ROW(K$4:K$6993)),ROW(A8))),\"\")","v":"1(343097845 34dfg fd445345,),"}]
[1,1,1,null,null," ",null,null,null,null,"",null,0,null,null,null,null,null,null,null,null,null,null,null,null,null,null,null,null,null,null,null,null,9,{"$f":"IFERROR(INDEX(K:K,SMALL(IF((K$4:K$6993<>0)*(K$4:K$6993<>\" \")*(K$4:K$6993<>\"\"),ROW(K$4:K$6993)),ROW(A9))),\"\")","v":"1(343097845 34dfg fd4,),"}]
[3,1,1,345,null," ",null,null,null,null,"",null,0,null,null,null,null,null,null,null,null,null,null,null,null,null,null,null,null,null,null,null,null,10,{"$f":"IFERROR(INDEX(K:K,SMALL(IF((K$4:K$6993<>0)*(K$4:K$6993<>\" \")*(K$4:K$6993<>\"\"),ROW(K$4:K$6993)),ROW(A10))),\"\")","v":"1(343097845 34dfg fd2,),"}]
[1,1,1,null,null," ",null,null,null,null,"",null,0,null,null,null,null,null,null,null,null,null,null,null,null,null,null,null,null,null,null,null,null,11,{"$f":"IFERROR(INDEX(K:K,SMALL(IF((K$4:K$6993<>0)*(K$4:K$6993<>\" \")*(K$4:K$6993<>\"\"),ROW(K$4:K$6993)),ROW(A11))),\"\")","v":"1(343097845 34dfg fd3,),"}]
[3,1,1,null,"43,ttx456s(343097845 34dfg fd2,), 09dg(23487v y7 673t2-ТЕКСТ,),ttx456s.один три9, 654678а 86b"," ",null,null,null,null,"311(343097845 34dfg fd2,),",null,0,null,null,null,null,null,null,null,null,null,null,null,null,null,null,null,null,null,null,null,null,12,{"$f":"IFERROR(INDEX(K:K,SMALL(IF((K$4:K$6993<>0)*(K$4:K$6993<>\" \")*(K$4:K$6993<>\"\"),ROW(K$4:K$6993)),ROW(A12))),\"\")","v":"1(34"}]
[1,1,1,"rthy",null," ",null,null,null,null,"",null,0,null,null,null,null,null,null,null,null,null,null,null,null,null,null,null,null,null,null,null,null,13,{"$f":"IFERROR(INDEX(K:K,SMALL(IF((K$4:K$6993<>0)*(K$4:K$6993<>\" \")*(K$4:K$6993<>\"\"),ROW(K$4:K$6993)),ROW(A13))),\"\")","v":"1(343097845 34dfg fd4,),"}]
[1,1,1,54,null," ",null,null,null,null,"",null,0,null,null,null,null,null,null,null,null,null,null,null,null,null,null,null,null,null,null,null,null,14,{"$f":"IFERROR(INDEX(K:K,SMALL(IF((K$4:K$6993<>0)*(K$4:K$6993<>\" \")*(K$4:K$6993<>\"\"),ROW(K$4:K$6993)),ROW(A14))),\"\")","v":"1(343097845 34dfg fd445345,),"}]
[1,1,1,"fm , ttx456s(343097845 34dfg fd3,), hfydd(dfdj ju48457 h748d,), 446d(43sfe,),ttx456s(343097845 34dfg fd7,), ",null," ",null,null,null,null,"111(343097845 34dfg fd3,),",null,0,null,null,null,null,null,null,null,null,null,null,null,null,null,null,null,null,null,null,null,null,15,{"$f":"IFERROR(INDEX(K:K,SMALL(IF((K$4:K$6993<>0)*(K$4:K$6993<>\" \")*(K$4:K$6993<>\"\"),ROW(K$4:K$6993)),ROW(A15))),\"\")","v":""}]
[1,1,1,"gh",null," ",null,null,null,null,"",null,0,null,null,null,null,null,null,null,null,null,null,null,null,null,null,null,null,null,null,null,null,16,{"$f":"IFERROR(INDEX(K:K,SMALL(IF((K$4:K$6993<>0)*(K$4:K$6993<>\" \")*(K$4:K$6993<>\"\"),ROW(K$4:K$6993)),ROW(A16))),\"\")","v":""}]
[1,4,1,"h",null," ",null,null,null,null,"",null,0,null,null,null,null,null,null,null,null,null,null,null,null,null,null,null,null,null,null,null,null,17,{"$f":"IFERROR(INDEX(K:K,SMALL(IF((K$4:K$6993<>0)*(K$4:K$6993<>\" \")*(K$4:K$6993<>\"\"),ROW(K$4:K$6993)),ROW(A17))),\"\")","v":""}]
[3,4,1,"fg",null," ",null,null,null,null,"",null,0,null,null,null,null,null,null,null,null,null,null,null,null,null,null,null,null,null,null,null,null,18,{"$f":"IFERROR(INDEX(K:K,SMALL(IF((K$4:K$6993<>0)*(K$4:K$6993<>\" \")*(K$4:K$6993<>\"\"),ROW(K$4:K$6993)),ROW(A18))),\"\")","v":""}]
[1,4,1,null,null," ",null,null,null,null,"",null,0,null,null,null,null,null,null,null,null,null,null,null,null,null,null,null,null,null,null,null,null,19,{"$f":"IFERROR(INDEX(K:K,SMALL(IF((K$4:K$6993<>0)*(K$4:K$6993<>\" \")*(K$4:K$6993<>\"\"),ROW(K$4:K$6993)),ROW(A19))),\"\")","v":""}]
[1,4,1,"fgh",null," ",null,null,null,null,"",null,0,null,null,null,null,null,null,null,null,null,null,null,null,null,null,null,null,null,null,null,null,20,{"$f":"IFERROR(INDEX(K:K,SMALL(IF((K$4:K$6993<>0)*(K$4:K$6993<>\" \")*(K$4:K$6993<>\"\"),ROW(K$4:K$6993)),ROW(A20))),\"\")","v":""}]
[6,1,1,"fgh",null," ",null,null,null,null,"",null,0,null,null,null,null,null,null,null,null,null,null,null,null,null,null,null,null,null,null,null,null,21,{"$f":"IFERROR(INDEX(K:K,SMALL(IF((K$4:K$6993<>0)*(K$4:K$6993<>\" \")*(K$4:K$6993<>\"\"),ROW(K$4:K$6993)),ROW(A21))),\"\")","v":""}]
[1,1,1,"h",null," ",null,null,null,null,"",null,0,null,null,null,null,null,null,null,null,null,null,null,null,null,null,null,null,null,null,null,null,22,{"$f":"IFERROR(INDEX(K:K,SMALL(IF((K$4:K$6993<>0)*(K$4:K$6993<>\" \")*(K$4:K$6993<>\"\"),ROW(K$4:K$6993)),ROW(A22))),\"\")","v":""}]
[1,1,1,"fgh",null," ",null,null,null,null,"",null,0,null,null,null,null,null,null,null,null,null,null,null,null,null,null,null,null,null,null,null,null,23,{"$f":"IFERROR(INDEX(K:K,SMALL(IF((K$4:K$6993<>0)*(K$4:K$6993<>\" \")*(K$4:K$6993<>\"\"),ROW(K$4:K$6993)),ROW(A23))),\"\")","v":""}]
[1,1,1,"fgh(435dfg ttx456s-ТЕКСТ,),ttx456s(343097845 34dfg fd4,),",null," ",null,null,null,null,"111(34309784",null,0,null,null,null,null,null,null,null,null,null,null,null,null,null,null,null,null,null,null,null,null,24,{"$f":"IFERROR(INDEX(K:K,SMALL(IF((K$4:K$6993<>0)*(K$4:K$6993<>\" \")*(K$4:K$6993<>\"\"),ROW(K$4:K$6993)),ROW(A24))),\"\")","v":""}]
[6,1,1,"h",null," ",null,null,null,null,"",null,0,null,null,null,null,null,null,null,null,null,null,null,null,null,null,null,null,null,null,null,null,25,{"$f":"IFERROR(INDEX(K:K,SMALL(IF((K$4:K$6993<>0)*(K$4:K$6993<>\" \")*(K$4:K$6993<>\"\"),ROW(K$4:K$6993)),ROW(A25))),\"\")","v":""}]
[6,1,1,"fgh",null," ",null,null,null,null,"",null,0,null,null,null,null,null,null,null,null,null,null,null,null,null,null,null,null,null,null,null,null,26,{"$f":"IFERROR(INDEX(K:K,SMALL(IF((K$4:K$6993<>0)*(K$4:K$6993<>\" \")*(K$4:K$6993<>\"\"),ROW(K$4:K$6993)),ROW(A26))),\"\")","v":""}]
[6,1,1,"fgh",null," ",null,null,null,null,"",null,0,null,null,null,null,null,null,null,null,null,null,null,null,null,null,null,null,null,null,null,null,27,{"$f":"IFERROR(INDEX(K:K,SMALL(IF((K$4:K$6993<>0)*(K$4:K$6993<>\" \")*(K$4:K$6993<>\"\"),ROW(K$4:K$6993)),ROW(A27))),\"\")","v":""}]
[3,1,1,"ttx456s.восемь-4,hfg 73 3ttx456s(343097845 34dfg fd4,),ttx456s.один-12,hfg 73",null," ",null,null,null,null,"311(343097845 34dfg fd4,),ttx456s.один-12,hfg 73",null,0,null,null,null,null,null,null,null,null,null,null,null,null,null,null,null,null,null,null,null,null,28,{"$f":"IFERROR(INDEX(K:K,SMALL(IF((K$4:K$6993<>0)*(K$4:K$6993<>\" \")*(K$4:K$6993<>\"\"),ROW(K$4:K$6993)),ROW(A28))),\"\")","v":""}]
[1,5,1,"h",null," ",null,null,null,null,"",null,0,null,null,null,null,null,null,null,null,null,null,null,null,null,null,null,null,null,null,null,null,29,{"$f":"IFERROR(INDEX(K:K,SMALL(IF((K$4:K$6993<>0)*(K$4:K$6993<>\" \")*(K$4:K$6993<>\"\"),ROW(K$4:K$6993)),ROW(A29))),\"\")","v":""}]
[1,5,1,"ttx456s(343097845 34dfg fd445345-ТЕКСТ 456,), gfh",null," ",null,null,null,null,"151(343097845 34dfg fd445345-ТЕКСТ 456,),",null,0,null,null,null,null,null,null,null,null,null,null,null,null,null,null,null,null,null,null,null,null,30,{"$f":"IFERROR(INDEX(K:K,SMALL(IF((K$4:K$6993<>0)*(K$4:K$6993<>\" \")*(K$4:K$6993<>\"\"),ROW(K$4:K$6993)),ROW(A30))),\"\")","v":""}]
[1,5,1,null,null," ",null,null,null,null,"",null,0,null,null,null,null,null,null,null,null,null,null,null,null,null,null,null,null,null,null,null,null,31,{"$f":"IFERROR(INDEX(K:K,SMALL(IF((K$4:K$6993<>0)*(K$4:K$6993<>\" \")*(K$4:K$6993<>\"\"),ROW(K$4:K$6993)),ROW(A31))),\"\")","v":""}]
[1,1,1,null,null," ",null,null,null,null,"",null,0,null,null,null,null,null,null,null,null,null,null,null,null,null,null,null,null,null,null,null,null,32,{"$f":"IFERROR(INDEX(K:K,SMALL(IF((K$4:K$6993<>0)*(K$4:K$6993<>\" \")*(K$4:K$6993<>\"\"),ROW(K$4:K$6993)),ROW(A32))),\"\")","v":""}]
[null,null,1,"fgh",null," ",null,null,null,null,"",null,0,null,null,null,null,null,null,null,null,null,null,null,null,null,null,null,null,null,null,null,null,33,{"$f":"IFERROR(INDEX(K:K,SMALL(IF((K$4:K$6993<>0)*(K$4:K$6993<>\" \")*(K$4:K$6993<>\"\"),ROW(K$4:K$6993)),ROW(A33))),\"\")","v":""}]
[null,null,1,null,null," ",null,null,null,null,"",null,0,null,null,null,null,null,null,null,null,null,null,null,null,null,null,null,null,null,null,null,null,34,{"$f":"IFERROR(INDEX(K:K,SMALL(IF((K$4:K$6993<>0)*(K$4:K$6993<>\" \")*(K$4:K$6993<>\"\"),ROW(K$4:K$6993)),ROW(A34))),\"\")","v":""}]
[null,null,1,"gfh",null," ",null,null,null,null,"",null,0,null,null,null,null,null,null,null,null,null,null,null,null,null,null,null,null,null,null,null,null,35,{"$f":"IFERROR(INDEX(K:K,SMALL(IF((K$4:K$6993<>0)*(K$4:K$6993<>\" \")*(K$4:K$6993<>\"\"),ROW(K$4:K$6993)),ROW(A35))),\"\")","v":""}]
[null,null,1,433,null," ",null,null,null,null,"",null,0,null,null,null,null,null,null,null,null,null,null,null,null,null,null,null,null,null,null,null,null,36,{"$f":"IFERROR(INDEX(K:K,SMALL(IF((K$4:K$6993<>0)*(K$4:K$6993<>\" \")*(K$4:K$6993<>\"\"),ROW(K$4:K$6993)),ROW(A36))),\"\")","v":""}]
[null,null,1,5434,null," ",null,null,null,null,"",null,0,null,null,null,null,null,null,null,null,null,null,null,null,null,null,null,null,null,null,null,null,37,{"$f":"IFERROR(INDEX(K:K,SMALL(IF((K$4:K$6993<>0)*(K$4:K$6993<>\" \")*(K$4:K$6993<>\"\"),ROW(K$4:K$6993)),ROW(A37))),\"\")","v":""}]
[null,null,1,5,null," ",null,null,null,null,"",null,0,null,null,null,null,null,null,null,null,null,null,null,null,null,null,null,null,null,null,null,null,38,{"$f":"IFERROR(INDEX(K:K,SMALL(IF((K$4:K$6993<>0)*(K$4:K$6993<>\" \")*(K$4:K$6993<>\"\"),ROW(K$4:K$6993)),ROW(A38))),\"\")","v":""}]
[null,null,1,34,null," ",null,null,null,null,"",null,0,null,null,null,null,null,null,null,null,null,null,null,null,null,null,null,null,null,null,null,null,39,{"$f":"IFERROR(INDEX(K:K,SMALL(IF((K$4:K$6993<>0)*(K$4:K$6993<>\" \")*(K$4:K$6993<>\"\"),ROW(K$4:K$6993)),ROW(A39))),\"\")","v":""}]
[null,null,1,5,null," ",null,null,null,null,"",null,0,null,null,null,null,null,null,null,null,null,null,null,null,null,null,null,null,null,null,null,null,40,{"$f":"IFERROR(INDEX(K:K,SMALL(IF((K$4:K$6993<>0)*(K$4:K$6993<>\" \")*(K$4:K$6993<>\"\"),ROW(K$4:K$6993)),ROW(A40))),\"\")","v":""}]
[null,null,1,45,null," ",null,null,null,null,"",null,0,null,null,null,null,null,null,null,null,null,null,null,null,null,null,null,null,null,null,null,null,41,{"$f":"IFERROR(INDEX(K:K,SMALL(IF((K$4:K$6993<>0)*(K$4:K$6993<>\" \")*(K$4:K$6993<>\"\"),ROW(K$4:K$6993)),ROW(A41))),\"\")","v":""}]
[null,null,1,43,"ttx456s(343097845 34dfg fd445345,), gfh"," ",null,null,null,null,"1(343097845 34dfg fd445345,),",null,0,null,null,null,null,null,null,null,null,null,null,null,null,null,null,null,null,null,null,null,null,42,{"$f":"IFERROR(INDEX(K:K,SMALL(IF((K$4:K$6993<>0)*(K$4:K$6993<>\" \")*(K$4:K$6993<>\"\"),ROW(K$4:K$6993)),ROW(A42))),\"\")","v":""}]
[null,null,1,5,null," ",null,null,null,null,"",null,0,null,null,null,null,null,null,null,null,null,null,null,null,null,null,null,null,null,null,null,null,43,{"$f":"IFERROR(INDEX(K:K,SMALL(IF((K$4:K$6993<>0)*(K$4:K$6993<>\" \")*(K$4:K$6993<>\"\"),ROW(K$4:K$6993)),ROW(A43))),\"\")","v":""}]
[null,null,1,null,null," ",null,null,null,null,"",null,0,null,null,null,null,null,null,null,null,null,null,null,null,null,null,null,null,null,null,null,null,44,{"$f":"IFERROR(INDEX(K:K,SMALL(IF((K$4:K$6993<>0)*(K$4:K$6993<>\" \")*(K$4:K$6993<>\"\"),ROW(K$4:K$6993)),ROW(A44))),\"\")","v":""}]
[null,null,1,345,null," ",null,null,null,null,"",null,0,null,null,null,null,null,null,null,null,null,null,null,null,null,null,null,null,null,null,null,null,45,{"$f":"IFERROR(INDEX(K:K,SMALL(IF((K$4:K$6993<>0)*(K$4:K$6993<>\" \")*(K$4:K$6993<>\"\"),ROW(K$4:K$6993)),ROW(A45))),\"\")","v":""}]
[null,null,1,null,null," ",null,null,null,null,"",null,0,null,null,null,null,null,null,null,null,null,null,null,null,null,null,null,null,null,null,null,null,46,{"$f":"IFERROR(INDEX(K:K,SMALL(IF((K$4:K$6993<>0)*(K$4:K$6993<>\" \")*(K$4:K$6993<>\"\"),ROW(K$4:K$6993)),ROW(A46))),\"\")","v":""}]
[null,null,1,null,null," ",null,null,null,null,"",null,0,null,null,null,null,null,null,null,null,null,null,null,null,null,null,null,null,null,null,null,null,47,{"$f":"IFERROR(INDEX(K:K,SMALL(IF((K$4:K$6993<>0)*(K$4:K$6993<>\" \")*(K$4:K$6993<>\"\"),ROW(K$4:K$6993)),ROW(A47))),\"\")","v":""}]
[null,null,1,"rthy",null," ",null,null,null,null,"",null,0,null,null,null,null,null,null,null,null,null,null,null,null,null,null,null,null,null,null,null,null,48,{"$f":"IFERROR(INDEX(K:K,SMALL(IF((K$4:K$6993<>0)*(K$4:K$6993<>\" \")*(K$4:K$6993<>\"\"),ROW(K$4:K$6993)),ROW(A48))),\"\")","v":""}]
[null,null,1,54,null," ",null,null,null,null,"",null,0,null,null,null,null,null,null,null,null,null,null,null,null,null,null,null,null,null,null,null,null,49,{"$f":"IFERROR(INDEX(K:K,SMALL(IF((K$4:K$6993<>0)*(K$4:K$6993<>\" \")*(K$4:K$6993<>\"\"),ROW(K$4:K$6993)),ROW(A49))),\"\")","v":""}]
[null,null,1,"f",null," ",null,null,null,null,"",null,0,null,null,null,null,null,null,null,null,null,null,null,null,null,null,null,null,null,null,null,null,50,{"$f":"IFERROR(INDEX(K:K,SMALL(IF((K$4:K$6993<>0)*(K$4:K$6993<>\" \")*(K$4:K$6993<>\"\"),ROW(K$4:K$6993)),ROW(A50))),\"\")","v":""}]
[null,null,1,"gh",null," ",null,null,null,null,"",null,0,null,null,null,null,null,null,null,null,null,null,null,null,null,null,null,null,null,null,null,null,51,{"$f":"IFERROR(INDEX(K:K,SMALL(IF((K$4:K$6993<>0)*(K$4:K$6993<>\" \")*(K$4:K$6993<>\"\"),ROW(K$4:K$6993)),ROW(A51))),\"\")","v":""}]
[null,null,1,"h",null," ",null,null,null,null,"",null,0,null,null,null,null,null,null,null,null,null,null,null,null,null,null,null,null,null,null,null,null,52,{"$f":"IFERROR(INDEX(K:K,SMALL(IF((K$4:K$6993<>0)*(K$4:K$6993<>\" \")*(K$4:K$6993<>\"\"),ROW(K$4:K$6993)),ROW(A52))),\"\")","v":""}]
[null,null,1,"fg",null," ",null,null,null,null,"",null,0,null,null,null,null,null,null,null,null,null,null,null,null,null,null,null,null,null,null,null,null,53,{"$f":"IFERROR(INDEX(K:K,SMALL(IF((K$4:K$6993<>0)*(K$4:K$6993<>\" \")*(K$4:K$6993<>\"\"),ROW(K$4:K$6993)),ROW(A53))),\"\")","v":""}]
[null,null,1,null,null," ",null,null,null,null,"",null,0,null,null,null,null,null,null,null,null,null,null,null,null,null,null,null,null,null,null,null,null,54,{"$f":"IFERROR(INDEX(K:K,SMALL(IF((K$4:K$6993<>0)*(K$4:K$6993<>\" \")*(K$4:K$6993<>\"\"),ROW(K$4:K$6993)),ROW(A54))),\"\")","v":""}]
[null,null,1,"fgh",null," ",null,null,null,null,"",null,0,null,null,null,null,null,null,null,null,null,null,null,null,null,null,null,null,null,null,null,null,55,{"$f":"IFERROR(INDEX(K:K,SMALL(IF((K$4:K$6993<>0)*(K$4:K$6993<>\" \")*(K$4:K$6993<>\"\"),ROW(K$4:K$6993)),ROW(A55))),\"\")","v":""}]
[null,null,1,"fgh",null," ",null,null,null,null,"",null,0,null,null,null,null,null,null,null,null,null,null,null,null,null,null,null,null,null,null,null,null,56,{"$f":"IFERROR(INDEX(K:K,SMALL(IF((K$4:K$6993<>0)*(K$4:K$6993<>\" \")*(K$4:K$6993<>\"\"),ROW(K$4:K$6993)),ROW(A56))),\"\")","v":""}]
[null,null,1,"h",null," ",null,null,null,null,"",null,0,null,null,null,null,null,null,null,null,null,null,null,null,null,null,null,null,null,null,null,null,57,{"$f":"IFERROR(INDEX(K:K,SMALL(IF((K$4:K$6993<>0)*(K$4:K$6993<>\" \")*(K$4:K$6993<>\"\"),ROW(K$4:K$6993)),ROW(A57))),\"\")","v":""}]
[null,null,1,"fgh",null," ",null,null,null,null,"",null,0,null,null,null,null,null,null,null,null,null,null,null,null,null,null,null,null,null,null,null,null,58,{"$f":"IFERROR(INDEX(K:K,SMALL(IF((K$4:K$6993<>0)*(K$4:K$6993<>\" \")*(K$4:K$6993<>\"\"),ROW(K$4:K$6993)),ROW(A58))),\"\")","v":""}]
[null,null,1,"fgh",null," ",null,null,null,null,"",null,0,null,null,null,null,null,null,null,null,null,null,null,null,null,null,null,null,null,null,null,null,59,{"$f":"IFERROR(INDEX(K:K,SMALL(IF((K$4:K$6993<>0)*(K$4:K$6993<>\" \")*(K$4:K$6993<>\"\"),ROW(K$4:K$6993)),ROW(A59))),\"\")","v":""}]
[null,null,1,"h",null," ",null,null,null,null,"",null,0,null,null,null,null,null,null,null,null,null,null,null,null,null,null,null,null,null,null,null,null,60,{"$f":"IFERROR(INDEX(K:K,SMALL(IF((K$4:K$6993<>0)*(K$4:K$6993<>\" \")*(K$4:K$6993<>\"\"),ROW(K$4:K$6993)),ROW(A60))),\"\")","v":""}]
[null,null,1,"fgh",null," ",null,null,null,null,"",null,0,null,null,null,null,null,null,null,null,null,null,null,null,null,null,null,null,null,null,null,null,61,{"$f":"IFERROR(INDEX(K:K,SMALL(IF((K$4:K$6993<>0)*(K$4:K$6993<>\" \")*(K$4:K$6993<>\"\"),ROW(K$4:K$6993)),ROW(A61))),\"\")","v":""}]
[null,null,1,"fgh",null," ",null,null,null,null,"",null,0,null,null,null,null,null,null,null,null,null,null,null,null,null,null,null,null,null,null,null,null,62,{"$f":"IFERROR(INDEX(K:K,SMALL(IF((K$4:K$6993<>0)*(K$4:K$6993<>\" \")*(K$4:K$6993<>\"\"),ROW(K$4:K$6993)),ROW(A62))),\"\")","v":""}]
[null,null,1,"hfg",null," ",null,null,null,null,"",null,0,null,null,null,null,null,null,null,null,null,null,null,null,null,null,null,null,null,null,null,null,63,{"$f":"IFERROR(INDEX(K:K,SMALL(IF((K$4:K$6993<>0)*(K$4:K$6993<>\" \")*(K$4:K$6993<>\"\"),ROW(K$4:K$6993)),ROW(A63))),\"\")","v":""}]
[null,null,1,"h",null," ",null,null,null,null,"",null,0,null,null,null,null,null,null,null,null,null,null,null,null,null,null,null,null,null,null,null,null,64,{"$f":"IFERROR(INDEX(K:K,SMALL(IF((K$4:K$6993<>0)*(K$4:K$6993<>\" \")*(K$4:K$6993<>\"\"),ROW(K$4:K$6993)),ROW(A64))),\"\")","v":""}]
[null,null,1,"gfh",null," ",null,null,null,null,"",null,0,null,null,null,null,null,null,null,null,null,null,null,null,null,null,null,null,null,null,null,null,65,{"$f":"IFERROR(INDEX(K:K,SMALL(IF((K$4:K$6993<>0)*(K$4:K$6993<>\" \")*(K$4:K$6993<>\"\"),ROW(K$4:K$6993)),ROW(A65))),\"\")","v":""}]
[null,null,1,null,"ttx456s(343097845 34dfg fd445345,), gfh"," ",null,null,null,null,{"$f":"IF(ISERROR(SEARCH($N$3,$D69&$E69))=TRUE,\"\",IF(ISERROR($A69&$B69&$C69&MID($D69,SEARCH($N$3&\"(\",$D69&$E69,1)+3,SEARCH(\")\",RIGHT($D69&$E69,LEN($D69&$E69)-FIND($N$3,$D69&$E69)-1),1)-1)),\"\",$A69&$B69&$C69&MID($D69&$E69,SEARCH($N$3&\"(\",$D69&$E69,1)+LEN($N$3),SEARCH(\")\",RIGHT($D69&$E69,LEN($D69&$E69)-FIND($N$3,$D69&$E69)-1),1)-LEN($N$3)+3)))","v":"1(343097845 34dfg fd445345,),"},null,{"$f":"IF(P69>\"\",1,0)","v":0},null,null,null,null,null,null,null,null,null,null,null,null,null,null,null,null,null,null,null,null,66,{"$f":"IFERROR(INDEX(K:K,SMALL(IF((K$4:K$6993<>0)*(K$4:K$6993<>\" \")*(K$4:K$6993<>\"\"),ROW(K$4:K$6993)),ROW(A66))),\"\")","v":""}]
[null,null,1,null,null," ",null,null,null,null,"",null,0,null,null,null,null,null,null,null,null,null,null,null,null,null,null,null,null,null,null,null,null,67,{"$f":"IFERROR(INDEX(K:K,SMALL(IF((K$4:K$6993<>0)*(K$4:K$6993<>\" \")*(K$4:K$6993<>\"\"),ROW(K$4:K$6993)),ROW(A67))),\"\")","v":""}]
[null,null,1,"fgh",null," ",null,null,null,null,"",null,0,null,null,null,null,null,null,null,null,null,null,null,null,null,null,null,null,null,null,null,null,68,{"$f":"IFERROR(INDEX(K:K,SMALL(IF((K$4:K$6993<>0)*(K$4:K$6993<>\" \")*(K$4:K$6993<>\"\"),ROW(K$4:K$6993)),ROW(A68))),\"\")","v":""}]
[null,null,1,null,null," ",null,null,null,null,"",null,0,null,null,null,null,null,null,null,null,null,null,null,null,null,null,null,null,null,null,null,null,69,{"$f":"IFERROR(INDEX(K:K,SMALL(IF((K$4:K$6993<>0)*(K$4:K$6993<>\" \")*(K$4:K$6993<>\"\"),ROW(K$4:K$6993)),ROW(A69))),\"\")","v":""}]
[null,null,1,"gfh",null," ",null,null,null,null,"",null,0,null,null,null,null,null,null,null,null,null,null,null,null,null,null,null,null,null,null,null,null,70,{"$f":"IFERROR(INDEX(K:K,SMALL(IF((K$4:K$6993<>0)*(K$4:K$6993<>\" \")*(K$4:K$6993<>\"\"),ROW(K$4:K$6993)),ROW(A70))),\"\")","v":""}]
[null,null,1,433,null," ",null,null,null,null,"",null,0,null,null,null,null,null,null,null,null,null,null,null,null,null,null,null,null,null,null,null,null,71,{"$f":"IFERROR(INDEX(K:K,SMALL(IF((K$4:K$6993<>0)*(K$4:K$6993<>\" \")*(K$4:K$6993<>\"\"),ROW(K$4:K$6993)),ROW(A71))),\"\")","v":""}]
[null,null,1,5434,null," ",null,null,null,null,"",null,0,null,null,null,null,null,null,null,null,null,null,null,null,null,null,null,null,null,null,null,null,72,{"$f":"IFERROR(INDEX(K:K,SMALL(IF((K$4:K$6993<>0)*(K$4:K$6993<>\" \")*(K$4:K$6993<>\"\"),ROW(K$4:K$6993)),ROW(A72))),\"\")","v":""}]
[null,null,1,"5 ttx456s ",null," ",null,null,null,null,"",null,0,null,null,null,null,null,null,null,null,null,null,null,null,null,null,null,null,null,null,null,null,73,{"$f":"IFERROR(INDEX(K:K,SMALL(IF((K$4:K$6993<>0)*(K$4:K$6993<>\" \")*(K$4:K$6993<>\"\"),ROW(K$4:K$6993)),ROW(A73))),\"\")","v":""}]
[null,null,1,34,null," ",null,null,null,null,"",null,0,null,null,null,null,null,null,null,null,null,null,null,null,null,null,null,null,null,null,null,null,74,{"$f":"IFERROR(INDEX(K:K,SMALL(IF((K$4:K$6993<>0)*(K$4:K$6993<>\" \")*(K$4:K$6993<>\"\"),ROW(K$4:K$6993)),ROW(A74))),\"\")","v":""}]
[null,null,1,5,null," ",null,null,null,null,"",null,0,null,null,null,null,null,null,null,null,null,null,null,null,null,null,null,null,null,null,null,null,75,{"$f":"IFERROR(INDEX(K:K,SMALL(IF((K$4:K$6993<>0)*(K$4:K$6993<>\" \")*(K$4:K$6993<>\"\"),ROW(K$4:K$6993)),ROW(A75))),\"\")","v":""}]
[null,null,1,45,null," ",null,null,null,null,"",null,0,null,null,null,null,null,null,null,null,null,null,null,null,null,null,null,null,null,null,null,null,76,{"$f":"IFERROR(INDEX(K:K,SMALL(IF((K$4:K$6993<>0)*(K$4:K$6993<>\" \")*(K$4:K$6993<>\"\"),ROW(K$4:K$6993)),ROW(A76))),\"\")","v":""}]
[null,null,1,"43,ttx456s(343097845 34dfg fd4,), 09dg(23487v y7 673t2,),",null," ",null,null,null,null,"1(343097845 34dfg fd4,),",null,0,null,null,null,null,null,null,null,null,null,null,null,null,null,null,null,null,null,null,null,null,77,{"$f":"IFERROR(INDEX(K:K,SMALL(IF((K$4:K$6993<>0)*(K$4:K$6993<>\" \")*(K$4:K$6993<>\"\"),ROW(K$4:K$6993)),ROW(A77))),\"\")","v":""}]
[null,null,1,5,null," ",null,null,null,null,"",null,0,null,null,null,null,null,null,null,null,null,null,null,null,null,null,null,null,null,null,null,null,78,{"$f":"IFERROR(INDEX(K:K,SMALL(IF((K$4:K$6993<>0)*(K$4:K$6993<>\" \")*(K$4:K$6993<>\"\"),ROW(K$4:K$6993)),ROW(A78))),\"\")","v":""}]
[null,null,1,null,null," ",null,null,null,null,"",null,0,null,null,null,null,null,null,null,null,null,null,null,null,null,null,null,null,null,null,null,null,79,{"$f":"IFERROR(INDEX(K:K,SMALL(IF((K$4:K$6993<>0)*(K$4:K$6993<>\" \")*(K$4:K$6993<>\"\"),ROW(K$4:K$6993)),ROW(A79))),\"\")","v":""}]
[null,null,1,345,null," ",null,null,null,null,"",null,0,null,null,null,null,null,null,null,null,null,null,null,null,null,null,null,null,null,null,null,null,80,{"$f":"IFERROR(INDEX(K:K,SMALL(IF((K$4:K$6993<>0)*(K$4:K$6993<>\" \")*(K$4:K$6993<>\"\"),ROW(K$4:K$6993)),ROW(A80))),\"\")","v":""}]
[null,null,1,null,null," ",null,null,null,null,"",null,0,null,null,null,null,null,null,null,null,null,null,null,null,null,null,null,null,null,null,null,null,81,{"$f":"IFERROR(INDEX(K:K,SMALL(IF((K$4:K$6993<>0)*(K$4:K$6993<>\" \")*(K$4:K$6993<>\"\"),ROW(K$4:K$6993)),ROW(A81))),\"\")","v":""}]
[null,null,1,null,"43,ttx456s(343097845 34dfg fd2,), 09dg(23487v y7 673t2,),"," ",null,null,null,null,"1(343097845 34dfg fd2,),",null,0,null,null,null,null,null,null,null,null,null,null,null,null,null,null,null,null,null,null,null,null,82,{"$f":"IFERROR(INDEX(K:K,SMALL(IF((K$4:K$6993<>0)*(K$4:K$6993<>\" \")*(K$4:K$6993<>\"\"),ROW(K$4:K$6993)),ROW(A82))),\"\")","v":""}]
[null,null,1,"rthy",null," ",null,null,null,null,"",null,0,null,null,null,null,null,null,null,null,null,null,null,null,null,null,null,null,null,null,null,null,83,{"$f":"IFERROR(INDEX(K:K,SMALL(IF((K$4:K$6993<>0)*(K$4:K$6993<>\" \")*(K$4:K$6993<>\"\"),ROW(K$4:K$6993)),ROW(A83))),\"\")","v":""}]
[null,null,1,54,null," ",null,null,null,null,"",null,0,null,null,null,null,null,null,null,null,null,null,null,null,null,null,null,null,null,null,null,null,84,{"$f":"IFERROR(INDEX(K:K,SMALL(IF((K$4:K$6993<>0)*(K$4:K$6993<>\" \")*(K$4:K$6993<>\"\"),ROW(K$4:K$6993)),ROW(A84))),\"\")","v":""}]
[null,null,1,"fm , ttx456s(343097845 34dfg fd3,), hfydd(dfdj ju48457 h748d,), 446d(43sfe,),ttx456s(343097845 34dfg fd7,), ",null," ",null,null,null,null,"1(343097845 34dfg fd3,),",null,0,null,null,null,null,null,null,null,null,null,null,null,null,null,null,null,null,null,null,null,null,85,{"$f":"IFERROR(INDEX(K:K,SMALL(IF((K$4:K$6993<>0)*(K$4:K$6993<>\" \")*(K$4:K$6993<>\"\"),ROW(K$4:K$6993)),ROW(A85))),\"\")","v":""}]
[null,null,1,"gh",null," ",null,null,null,null,"",null,0,null,null,null,null,null,null,null,null,null,null,null,null,null,null,null,null,null,null,null,null,86,{"$f":"IFERROR(INDEX(K:K,SMALL(IF((K$4:K$6993<>0)*(K$4:K$6993<>\" \")*(K$4:K$6993<>\"\"),ROW(K$4:K$6993)),ROW(A86))),\"\")","v":""}]
[null,null,1,"h",null," ",null,null,null,null,"",null,0,null,null,null,null,null,null,null,null,null,null,null,null,null,null,null,null,null,null,null,null,87,{"$f":"IFERROR(INDEX(K:K,SMALL(IF((K$4:K$6993<>0)*(K$4:K$6993<>\" \")*(K$4:K$6993<>\"\"),ROW(K$4:K$6993)),ROW(A87))),\"\")","v":""}]
[null,null,1,"fg",null," ",null,null,null,null,"",null,0,null,null,null,null,null,null,null,null,null,null,null,null,null,null,null,null,null,null,null,null,88,{"$f":"IFERROR(INDEX(K:K,SMALL(IF((K$4:K$6993<>0)*(K$4:K$6993<>\" \")*(K$4:K$6993<>\"\"),ROW(K$4:K$6993)),ROW(A88))),\"\")","v":""}]
[null,null,1,null,null," ",null,null,null,null,"",null,0,null,null,null,null,null,null,null,null,null,null,null,null,null,null,null,null,null,null,null,null,89,{"$f":"IFERROR(INDEX(K:K,SMALL(IF((K$4:K$6993<>0)*(K$4:K$6993<>\" \")*(K$4:K$6993<>\"\"),ROW(K$4:K$6993)),ROW(A89))),\"\")","v":""}]
[null,null,1,"fgh",null," ",null,null,null,null,"",null,0,null,null,null,null,null,null,null,null,null,null,null,null,null,null,null,null,null,null,null,null,90,{"$f":"IFERROR(INDEX(K:K,SMALL(IF((K$4:K$6993<>0)*(K$4:K$6993<>\" \")*(K$4:K$6993<>\"\"),ROW(K$4:K$6993)),ROW(A90))),\"\")","v":""}]
[null,null,1,"fgh",null," ",null,null,null,null,"",null,0,null,null,null,null,null,null,null,null,null,null,null,null,null,null,null,null,null,null,null,null,91,{"$f":"IFERROR(INDEX(K:K,SMALL(IF((K$4:K$6993<>0)*(K$4:K$6993<>\" \")*(K$4:K$6993<>\"\"),ROW(K$4:K$6993)),ROW(A91))),\"\")","v":""}]
[null,null,1,"h",null," ",null,null,null,null,"",null,0,null,null,null,null,null,null,null,null,null,null,null,null,null,null,null,null,null,null,null,null,92,{"$f":"IFERROR(INDEX(K:K,SMALL(IF((K$4:K$6993<>0)*(K$4:K$6993<>\" \")*(K$4:K$6993<>\"\"),ROW(K$4:K$6993)),ROW(A92))),\"\")","v":""}]
[null,null,1,"fgh",null," ",null,null,null,null,"",null,0,null,null,null,null,null,null,null,null,null,null,null,null,null,null,null,null,null,null,null,null,93,{"$f":"IFERROR(INDEX(K:K,SMALL(IF((K$4:K$6993<>0)*(K$4:K$6993<>\" \")*(K$4:K$6993<>\"\"),ROW(K$4:K$6993)),ROW(A93))),\"\")","v":""}]
[null,null,1,"fgh(435dfg ttx456s,),ttx456s(343097845 34dfg fd4,),",null," ",null,null,null,null,"1(34",null,0,null,null,null,null,null,null,null,null,null,null,null,null,null,null,null,null,null,null,null,null,94,{"$f":"IFERROR(INDEX(K:K,SMALL(IF((K$4:K$6993<>0)*(K$4:K$6993<>\" \")*(K$4:K$6993<>\"\"),ROW(K$4:K$6993)),ROW(A94))),\"\")","v":""}]
[null,null,1,"h",null," ",null,null,null,null,"",null,0,null,null,null,null,null,null,null,null,null,null,null,null,null,null,null,null,null,null,null,null,95,{"$f":"IFERROR(INDEX(K:K,SMALL(IF((K$4:K$6993<>0)*(K$4:K$6993<>\" \")*(K$4:K$6993<>\"\"),ROW(K$4:K$6993)),ROW(A95))),\"\")","v":""}]
[null,null,1,"fgh",null," ",null,null,null,null,"",null,0,null,null,null,null,null,null,null,null,null,null,null,null,null,null,null,null,null,null,null,null,96,{"$f":"IFERROR(INDEX(K:K,SMALL(IF((K$4:K$6993<>0)*(K$4:K$6993<>\" \")*(K$4:K$6993<>\"\"),ROW(K$4:K$6993)),ROW(A96))),\"\")","v":""}]
[null,null,1,"fgh",null," ",null,null,null,null,"",null,0,null,null,null,null,null,null,null,null,null,null,null,null,null,null,null,null,null,null,null,null,97,{"$f":"IFERROR(INDEX(K:K,SMALL(IF((K$4:K$6993<>0)*(K$4:K$6993<>\" \")*(K$4:K$6993<>\"\"),ROW(K$4:K$6993)),ROW(A97))),\"\")","v":""}]
[null,null,1,"hfg 73 3ttx456s(343097845 34dfg fd4,),",null," ",null,null,null,null,"1(343097845 34dfg fd4,),",null,0,null,null,null,null,null,null,null,null,null,null,null,null,null,null,null,null,null,null,null,null,98,{"$f":"IFERROR(INDEX(K:K,SMALL(IF((K$4:K$6993<>0)*(K$4:K$6993<>\" \")*(K$4:K$6993<>\"\"),ROW(K$4:K$6993)),ROW(A98))),\"\")","v":""}]
[null,null,1,"h",null," ",null,null,null,null,"",null,0,null,null,null,null,null,null,null,null,null,null,null,null,null,null,null,null,null,null,null,null,99,{"$f":"IFERROR(INDEX(K:K,SMALL(IF((K$4:K$6993<>0)*(K$4:K$6993<>\" \")*(K$4:K$6993<>\"\"),ROW(K$4:K$6993)),ROW(A99))),\"\")","v":""}]
[null,null,1,"ttx456s(343097845 34dfg fd445345,), gfh",null," ",null,null,null,null,"1(343097845 34dfg fd445345,),",null,0,null,null,null,null,null,null,null,null,null,null,null,null,null,null,null,null,null,null,null,null,100,{"$f":"IFERROR(INDEX(K:K,SMALL(IF((K$4:K$6993<>0)*(K$4:K$6993<>\" \")*(K$4:K$6993<>\"\"),ROW(K$4:K$6993)),ROW(A100))),\"\")","v":""}]
[null,null,1,null,null," ",null,null,null,null,"",null,0,null,null,null,null,null,null,null,null,null,null,null,null,null,null,null,null,null,null,null,null,101,{"$f":"IFERROR(INDEX(K:K,SMALL(IF((K$4:K$6993<>0)*(K$4:K$6993<>\" \")*(K$4:K$6993<>\"\"),ROW(K$4:K$6993)),ROW(A101))),\"\")","v":""}]
[null,null,1,null,null," ",null,null,null,null,"",null,0,null,null,null,null,null,null,null,null,null,null,null,null,null,null,null,null,null,null,null,null,102,{"$f":"IFERROR(INDEX(K:K,SMALL(IF((K$4:K$6993<>0)*(K$4:K$6993<>\" \")*(K$4:K$6993<>\"\"),ROW(K$4:K$6993)),ROW(A102))),\"\")","v":""}]
[null,null,1,"fgh",null," ",null,null,null,null,"",null,0,null,null,null,null,null,null,null,null,null,null,null,null,null,null,null,null,null,null,null,null,103,{"$f":"IFERROR(INDEX(K:K,SMALL(IF((K$4:K$6993<>0)*(K$4:K$6993<>\" \")*(K$4:K$6993<>\"\"),ROW(K$4:K$6993)),ROW(A103))),\"\")","v":""}]